[Event "*** Titled Tuesday 3|2 Blitz"]
[Site "Chess.com"]
[Date "2016.01.05"]
[Round "6"]
[White "jlandaw"]
[Black "Iball95"]
[Result "0-1"]
[WhiteElo "2340"]
[BlackElo "2409"]
[TimeControl "180+2"]
[EndTime "18:14:35 PST"]
[Termination "Iball95 won by resignation"]

1. e4 {[%clk 0:03:01.9]} 1... e5 {[%clk 0:03:00]} 2. Nf3 {[%clk 0:03:02.9]} 2...
Nc6 {[%clk 0:02:59.3]} 3. Bb5 {[%clk 0:03:03.9]} 3... Nf6 {[%clk 0:02:59.5]} 4.
d3 {[%clk 0:03:04.9]} 4... Bc5 {[%clk 0:02:59.6]} 5. O-O {[%clk 0:03:05.6]} 5...
Nd4 {[%clk 0:03:00.1]} 6. Nxd4 {[%clk 0:03:02.2]} 6... Bxd4 {[%clk 0:03:02]} 7.
Nd2 {[%clk 0:02:55.6]} 7... c6 {[%clk 0:03:01.3]} 8. Ba4 {[%clk 0:02:55.5]} 8...
d6 {[%clk 0:02:54.5]} 9. c3 {[%clk 0:02:55.5]} 9... Bb6 {[%clk 0:02:54.5]} 10.
Bb3 {[%clk 0:02:44.1]} 10... Qe7 {[%clk 0:02:53.4]} 11. Nc4 {[%clk 0:02:44]}
11... Bc7 {[%clk 0:02:53.5]} 12. Bg5 {[%clk 0:02:45.2]} 12... h6 {[%clk
0:02:53.4]} 13. Bh4 {[%clk 0:02:44.7]} 13... g5 {[%clk 0:02:36.1]} 14. Bg3
{[%clk 0:02:43.3]} 14... Be6 {[%clk 0:02:22.7]} 15. Qe2 {[%clk 0:02:34.7]} 15...
O-O-O {[%clk 0:02:18.4]} 16. d4 {[%clk 0:02:31.2]} 16... Bxc4 {[%clk 0:01:34.9]}
17. Qxc4 {[%clk 0:02:13.1]} 17... Nxe4 {[%clk 0:01:31.6]} 18. Qxf7 {[%clk
0:02:05.2]} 18... Qxf7 {[%clk 0:01:30.1]} 19. Bxf7 {[%clk 0:02:07.1]} 19... exd4
{[%clk 0:01:27.9]} 20. cxd4 {[%clk 0:02:05.8]} 20... Bb6 {[%clk 0:01:27.9]} 21.
d5 {[%clk 0:02:02.1]} 21... Rdf8 {[%clk 0:01:15]} 22. Be6+ {[%clk 0:01:41.1]}
22... Kc7 {[%clk 0:01:15.1]} 23. dxc6 {[%clk 0:01:04.6]} 23... bxc6 {[%clk
0:01:02.1]} 24. Rac1 {[%clk 0:01:05.3]} 24... Kb7 {[%clk 0:00:55.9]} 25. Rc2
{[%clk 0:00:48.9]} 25... h5 {[%clk 0:00:55.2]} 26. Re1 {[%clk 0:00:50.4]} 26...
d5 {[%clk 0:00:50.3]} 27. Ree2 {[%clk 0:00:39.6]} 27... Rh6 {[%clk 0:00:40.8]}
28. Rxe4 {[%clk 0:00:10.7]} 28... dxe4 {[%clk 0:00:40.1]} 29. Bc4 {[%clk
0:00:12]} 29... Rhf6 {[%clk 0:00:35.2]} 30. Kf1 {[%clk 0:00:09.2]} 30... h4
{[%clk 0:00:35.2]} 31. Be5 {[%clk 0:00:10.4]} 31... Rxf2+ {[%clk 0:00:35.1]} 32.
Rxf2 {[%clk 0:00:11.9]} 32... Rxf2+ {[%clk 0:00:36]} 33. Ke1 {[%clk 0:00:13.8]}
0-1

[Event "*** Titled Tuesday 3|2 Blitz"]
[Site "Chess.com"]
[Date "2016.01.05"]
[Round "6"]
[White "DanielNaroditsky"]
[Black "chessdude"]
[Result "1-0"]
[WhiteElo "2555"]
[BlackElo "2355"]
[TimeControl "180+2"]
[EndTime "18:14:59 PST"]
[Termination "DanielNaroditsky won on time"]

1. d4 {[%clk 0:03:01.9]} 1... Nf6 {[%clk 0:03:00.3]} 2. c4 {[%clk 0:03:03.3]}
2... e6 {[%clk 0:03:01.5]} 3. Nc3 {[%clk 0:03:04.4]} 3... Bb4 {[%clk 0:03:02]}
4. f3 {[%clk 0:03:05.9]} 4... d5 {[%clk 0:02:55.5]} 5. a3 {[%clk 0:03:06.3]}
5... Bxc3+ {[%clk 0:02:55.2]} 6. bxc3 {[%clk 0:03:07.5]} 6... c5 {[%clk
0:02:53.8]} 7. cxd5 {[%clk 0:03:09]} 7... exd5 {[%clk 0:02:54.4]} 8. e3 {[%clk
0:03:10.1]} 8... O-O {[%clk 0:02:44.3]} 9. Bd3 {[%clk 0:03:10.6]} 9... Nc6
{[%clk 0:02:43]} 10. Ne2 {[%clk 0:03:11]} 10... Re8 {[%clk 0:02:35.9]} 11. O-O
{[%clk 0:03:11.5]} 11... c4 {[%clk 0:02:36.2]} 12. Bc2 {[%clk 0:03:12.1]} 12...
b5 {[%clk 0:02:37.8]} 13. Ng3 {[%clk 0:03:09.6]} 13... a5 {[%clk 0:02:37.3]} 14.
e4 {[%clk 0:03:10.2]} 14... Rb8 {[%clk 0:02:28.2]} 15. e5 {[%clk 0:02:50.3]}
15... Nd7 {[%clk 0:02:29]} 16. f4 {[%clk 0:02:29.3]} 16... Nf8 {[%clk 0:02:24]}
17. f5 {[%clk 0:02:26]} 17... b4 {[%clk 0:02:23.7]} 18. axb4 {[%clk 0:02:26.6]}
18... axb4 {[%clk 0:02:23.2]} 19. Nh5 {[%clk 0:02:18.4]} 19... b3 {[%clk
0:02:12.6]} 20. Qg4 {[%clk 0:02:00.6]} 20... Ng6 {[%clk 0:02:12.5]} 21. e6
{[%clk 0:02:01.3]} 21... Bxe6 {[%clk 0:00:25.2]} 22. fxe6 {[%clk 0:02:01.1]}
22... f5 {[%clk 0:00:27.1]} 23. Bxf5 {[%clk 0:01:53.1]} 23... Qh4 {[%clk
0:00:24.4]} 24. Qf3 {[%clk 0:01:25.4]} 24... Rf8 {[%clk 0:00:11.2]} 25. g3
{[%clk 0:01:07.5]} 25... Qd8 {[%clk 0:00:07.6]} 26. Ra6 {[%clk 0:00:55.5]} 26...
Nce7 {[%clk 0:00:08.5]} 27. Bg5 {[%clk 0:00:57.2]} 27... b2 {[%clk 0:00:06.6]}
28. Bxe7 {[%clk 0:00:37.1]} 28... Nxe7 {[%clk 0:00:05.9]} 29. Qg4 {[%clk
0:00:26.5]} 29... Nxf5 {[%clk 0:00:06.9]} 30. Ra7 {[%clk 0:00:21.5]} 30... g6
{[%clk 0:00:07.8]} 31. e7 {[%clk 0:00:18.1]} 31... Nxe7 {[%clk 0:00:07.6]} 32.
Qe6+ {[%clk 0:00:17.9]} 1-0

[Event "*** Titled Tuesday 3|2 Blitz"]
[Site "Chess.com"]
[Date "2016.01.05"]
[Round "6"]
[White "AlexanderL"]
[Black "tac49"]
[Result "1-0"]
[WhiteElo "2602"]
[BlackElo "2426"]
[TimeControl "180+2"]
[EndTime "18:15:24 PST"]
[Termination "AlexanderL won on time"]

1. d4 {[%clk 0:03:01.9]} 1... Nf6 {[%clk 0:03:00]} 2. c4 {[%clk 0:03:02.7]} 2...
g6 {[%clk 0:03:00.4]} 3. Nc3 {[%clk 0:03:03.8]} 3... Bg7 {[%clk 0:03:01.4]} 4.
e4 {[%clk 0:03:04.5]} 4... d6 {[%clk 0:03:01.2]} 5. Nf3 {[%clk 0:03:05.3]} 5...
O-O {[%clk 0:03:02.2]} 6. Be2 {[%clk 0:03:06.4]} 6... e5 {[%clk 0:03:02.2]} 7.
O-O {[%clk 0:03:07.3]} 7... Nbd7 {[%clk 0:03:00.6]} 8. d5 {[%clk 0:02:52.3]}
8... a5 {[%clk 0:02:56.5]} 9. Bg5 {[%clk 0:02:42.1]} 9... h6 {[%clk 0:02:49.1]}
10. Be3 {[%clk 0:02:42.8]} 10... Nc5 {[%clk 0:02:12.1]} 11. Nd2 {[%clk
0:02:38.7]} 11... Bd7 {[%clk 0:02:12.8]} 12. b3 {[%clk 0:02:37.7]} 12... c6
{[%clk 0:02:09.6]} 13. a3 {[%clk 0:02:37]} 13... cxd5 {[%clk 0:02:09.9]} 14.
cxd5 {[%clk 0:02:38.1]} 14... Rc8 {[%clk 0:02:08.6]} 15. Rc1 {[%clk 0:02:38.2]}
15... b5 {[%clk 0:01:52.8]} 16. b4 {[%clk 0:02:29.7]} 16... axb4 {[%clk
0:01:46.4]} 17. axb4 {[%clk 0:02:30.6]} 17... Na4 {[%clk 0:01:47.3]} 18. Qb3
{[%clk 0:02:26.3]} 18... Nxc3 {[%clk 0:01:32.9]} 19. Rxc3 {[%clk 0:02:28.2]}
19... Rxc3 {[%clk 0:01:32.3]} 20. Qxc3 {[%clk 0:02:29.3]} 20... Qb8 {[%clk
0:01:29.8]} 21. h3 {[%clk 0:02:17.9]} 21... Rc8 {[%clk 0:01:30]} 22. Qa3 {[%clk
0:02:15.7]} 22... Qc7 {[%clk 0:01:15.4]} 23. Ra1 {[%clk 0:02:15.8]} 23... Ne8
{[%clk 0:01:05.3]} 24. Nb3 {[%clk 0:02:13.8]} 24... f5 {[%clk 0:01:04.6]} 25.
Rc1 {[%clk 0:02:13.9]} 25... Qd8 {[%clk 0:01:02.6]} 26. Rxc8 {[%clk 0:02:06.7]}
26... Qxc8 {[%clk 0:01:01.6]} 27. Qa7 {[%clk 0:02:05.7]} 27... fxe4 {[%clk
0:00:55]} 28. Na5 {[%clk 0:01:50.8]} 28... Nf6 {[%clk 0:00:49.9]} 29. Nb7 {[%clk
0:01:40.5]} 29... Nxd5 {[%clk 0:00:43.9]} 30. Nxd6 {[%clk 0:01:41]} 30... Qc6
{[%clk 0:00:43.9]} 31. Bxb5 {[%clk 0:01:27.8]} 31... Qxd6 {[%clk 0:00:43.5]} 32.
Bc5 {[%clk 0:01:28.8]} 32... Qc7 {[%clk 0:00:16.5]} 33. Qxc7 {[%clk 0:01:27.1]}
33... Nxc7 {[%clk 0:00:18.4]} 34. Bxd7 {[%clk 0:01:28.6]} 34... Bf8 {[%clk
0:00:19.5]} 35. Bb6 {[%clk 0:01:13.3]} 35... Bd6 {[%clk 0:00:20]} 36. b5 {[%clk
0:01:14.1]} 36... Kf7 {[%clk 0:00:20.8]} 37. Be3 {[%clk 0:01:12.6]} 37... Nd5
{[%clk 0:00:18.7]} 38. Bxh6 {[%clk 0:01:11.2]} 38... Bc5 {[%clk 0:00:11.7]} 39.
Bc6 {[%clk 0:01:11.4]} 39... Ke6 {[%clk 0:00:10.6]} 40. Bxd5+ {[%clk 0:01:02.8]}
40... Kxd5 {[%clk 0:00:12.5]} 41. Be3 {[%clk 0:01:04.7]} 41... Bd4 {[%clk
0:00:12.4]} 42. g4 {[%clk 0:01:01.2]} 42... Kc5 {[%clk 0:00:08.3]} 43. h4 {[%clk
0:01:02.2]} 43... Kxb5 {[%clk 0:00:04.3]} 44. h5 {[%clk 0:01:03.4]} 44... gxh5
{[%clk 0:00:03.3]} 45. gxh5 {[%clk 0:01:04.7]} 1-0

[Event "*** Titled Tuesday 3|2 Blitz"]
[Site "Chess.com"]
[Date "2016.01.05"]
[Round "6"]
[White "AdrianaNikolova"]
[Black "MasterLeif"]
[Result "0-1"]
[WhiteElo "2131"]
[BlackElo "2351"]
[TimeControl "180+2"]
[EndTime "18:15:25 PST"]
[Termination "MasterLeif won by resignation"]

1. e4 {[%clk 0:03:01.9]} 1... e5 {[%clk 0:03:00.1]} 2. Nf3 {[%clk 0:03:02.5]}
2... Nc6 {[%clk 0:03:01.7]} 3. Bb5 {[%clk 0:03:02.9]} 3... Nd4 {[%clk
0:03:03.3]} 4. Nxd4 {[%clk 0:03:03]} 4... exd4 {[%clk 0:03:05.2]} 5. Bc4 {[%clk
0:03:04.9]} 5... Nf6 {[%clk 0:03:04.8]} 6. e5 {[%clk 0:03:03.8]} 6... d5 {[%clk
0:03:05.1]} 7. Bb3 {[%clk 0:03:04.2]} 7... Ne4 {[%clk 0:02:35.1]} 8. d3 {[%clk
0:03:03.9]} 8... Bb4+ {[%clk 0:02:31.4]} 9. Bd2 {[%clk 0:03:04.1]} 9... Nxd2
{[%clk 0:02:26.4]} 10. Nxd2 {[%clk 0:03:06]} 10... Qg5 {[%clk 0:02:25.5]} 11.
Bxd5 {[%clk 0:02:16.5]} 11... Qxe5+ {[%clk 0:02:25.4]} 12. Qe2 {[%clk
0:02:17.8]} 12... Qxe2+ {[%clk 0:02:21.8]} 13. Kxe2 {[%clk 0:02:19.7]} 13... O-O
{[%clk 0:02:14.9]} 14. Nf3 {[%clk 0:01:59.4]} 14... c6 {[%clk 0:02:09.9]} 15.
Bb3 {[%clk 0:01:58.4]} 15... Bg4 {[%clk 0:02:09.9]} 16. h3 {[%clk 0:01:58.5]}
16... Rfe8+ {[%clk 0:02:10.6]} 17. Kf1 {[%clk 0:01:57]} 17... Bxf3 {[%clk
0:02:06.7]} 18. gxf3 {[%clk 0:01:58.9]} 18... Re7 {[%clk 0:01:59.5]} 19. Rg1
{[%clk 0:01:59.2]} 19... Rae8 {[%clk 0:01:54.7]} 20. Rg4 {[%clk 0:01:59]} 20...
c5 {[%clk 0:01:49.1]} 21. a3 {[%clk 0:02:00]} 21... Ba5 {[%clk 0:01:49.6]} 22.
Ba4 {[%clk 0:02:01]} 22... Re1+ {[%clk 0:01:46.6]} 23. Rxe1 {[%clk 0:02:00.4]}
23... Rxe1+ {[%clk 0:01:48.5]} 24. Kg2 {[%clk 0:02:02.3]} 24... f5 {[%clk
0:01:37.5]} 25. Bb3+ {[%clk 0:01:38.4]} 25... Kf8 {[%clk 0:01:38.2]} 26. Rh4
{[%clk 0:01:23.3]} 26... h6 {[%clk 0:01:32.8]} 27. Rh5 {[%clk 0:01:24.1]} 27...
g6 {[%clk 0:01:22.9]} 28. Rxh6 {[%clk 0:01:25.1]} 28... Kg7 {[%clk 0:01:23.4]}
29. Rh4 {[%clk 0:01:24.5]} 29... Bd8 {[%clk 0:01:18.8]} 30. Rf4 {[%clk
0:01:12.1]} 30... Bc7 {[%clk 0:01:11.3]} 31. Rh4 {[%clk 0:01:11.2]} 31... Bd8
{[%clk 0:01:09]} 32. Rf4 {[%clk 0:01:11.9]} 32... Bg5 {[%clk 0:01:05]} 33. Kg3
{[%clk 0:01:12.9]} 33... Rb1 {[%clk 0:00:44.5]} 34. h4 {[%clk 0:01:13.3]} 34...
Bxf4+ {[%clk 0:00:42.3]} 35. Kxf4 {[%clk 0:01:15.2]} 35... Kf6 {[%clk
0:00:42.7]} 36. h5 {[%clk 0:01:03.4]} 36... gxh5 {[%clk 0:00:42.2]} 37. Ba4
{[%clk 0:00:58.4]} 37... Rxb2 {[%clk 0:00:38.7]} 38. Bd7 {[%clk 0:00:57.9]}
38... Rxc2 {[%clk 0:00:38.6]} 39. Bxf5 {[%clk 0:00:59.8]} 39... Rxf2 {[%clk
0:00:38.2]} 40. Be4 {[%clk 0:01:00.1]} 40... b5 {[%clk 0:00:34.8]} 41. Bc6
{[%clk 0:00:59.7]} 41... b4 {[%clk 0:00:34]} 42. axb4 {[%clk 0:01:01.6]} 42...
cxb4 {[%clk 0:00:35.4]} 43. Bd5 {[%clk 0:01:01.4]} 43... a5 {[%clk 0:00:35.1]}
44. Ke4 {[%clk 0:01:02.1]} 44... a4 {[%clk 0:00:26.9]} 45. Kxd4 {[%clk
0:01:03.4]} 45... a3 {[%clk 0:00:20.6]} 46. Ke3 {[%clk 0:01:01.4]} 46... Rb2
{[%clk 0:00:19]} 47. d4 {[%clk 0:00:52.8]} 47... a2 {[%clk 0:00:19.9]} 48. Bxa2
{[%clk 0:00:53.6]} 48... Rxa2 {[%clk 0:00:21.8]} 49. d5 {[%clk 0:00:55.5]} 49...
Ke5 {[%clk 0:00:22]} 50. d6 {[%clk 0:00:56]} 50... Kxd6 {[%clk 0:00:23]} 51. Kf4
{[%clk 0:00:57.9]} 51... Ra3 {[%clk 0:00:22.2]} 52. Kg5 {[%clk 0:00:59.8]} 52...
Rxf3 {[%clk 0:00:23]} 53. Kxh5 {[%clk 0:01:01.4]} 53... Rg3 {[%clk 0:00:24.3]}
54. Kh4 {[%clk 0:01:01.9]} 54... Rg1 {[%clk 0:00:26.2]} 0-1

[Event "*** Titled Tuesday 3|2 Blitz"]
[Site "Chess.com"]
[Date "2016.01.05"]
[Round "6"]
[White "chesstatour"]
[Black "UltimateCrusher2"]
[Result "0-1"]
[WhiteElo "1923"]
[BlackElo "2045"]
[TimeControl "180+2"]
[EndTime "18:15:58 PST"]
[Termination "UltimateCrusher2 won by resignation"]

1. c4 {[%clk 0:03:01.9]} 1... b6 {[%clk 0:02:58.7]} 2. e4 {[%clk 0:02:56.7]}
2... c5 {[%clk 0:02:54.8]} 3. Nf3 {[%clk 0:02:54.4]} 3... Bb7 {[%clk 0:02:54.6]}
4. Nc3 {[%clk 0:02:52.8]} 4... e6 {[%clk 0:02:52.8]} 5. d4 {[%clk 0:02:52.2]}
5... cxd4 {[%clk 0:02:53.8]} 6. Nxd4 {[%clk 0:02:52.5]} 6... Bb4 {[%clk
0:02:55.2]} 7. Bd3 {[%clk 0:02:13.9]} 7... Nf6 {[%clk 0:02:49.3]} 8. Qe2 {[%clk
0:02:11.9]} 8... Bxc3+ {[%clk 0:02:49.1]} 9. bxc3 {[%clk 0:02:11.6]} 9... d6
{[%clk 0:02:49.7]} 10. O-O {[%clk 0:02:09.6]} 10... O-O {[%clk 0:02:49.9]} 11.
a4 {[%clk 0:02:02.5]} 11... Nbd7 {[%clk 0:02:37.1]} 12. f4 {[%clk 0:01:40.1]}
12... e5 {[%clk 0:02:32.1]} 13. Nf5 {[%clk 0:01:35.9]} 13... Nc5 {[%clk
0:02:24.3]} 14. Bc2 {[%clk 0:01:32.6]} 14... Bxe4 {[%clk 0:02:06.9]} 15. fxe5
{[%clk 0:01:12.7]} 15... dxe5 {[%clk 0:02:00.9]} 16. Ba3 {[%clk 0:00:55.5]}
16... Bxc2 {[%clk 0:01:46.1]} 17. Qxc2 {[%clk 0:00:54.4]} 17... Qc7 {[%clk
0:01:46.9]} 18. Nh6+ {[%clk 0:00:32.2]} 18... Kh8 {[%clk 0:01:47.6]} 19. Rxf6
{[%clk 0:00:30.5]} 19... gxf6 {[%clk 0:01:47.9]} 20. Rf1 {[%clk 0:00:25.9]}
20... Qe7 {[%clk 0:01:14.8]} 21. Nf5 {[%clk 0:00:22]} 21... Qe6 {[%clk
0:01:12.6]} 22. Bxc5 {[%clk 0:00:22.6]} 22... bxc5 {[%clk 0:01:13.2]} 23. Qe4
{[%clk 0:00:22.4]} 23... Rg8 {[%clk 0:01:11.1]} 24. Rf3 {[%clk 0:00:19.3]} 24...
Rad8 {[%clk 0:01:10.8]} 25. Rh3 {[%clk 0:00:18.5]} 25... Rg6 {[%clk 0:01:11.1]}
26. Nh4 {[%clk 0:00:17.3]} 26... Rh6 {[%clk 0:00:44.8]} 27. Nf5 {[%clk
0:00:15.8]} 27... Rxh3 {[%clk 0:00:44.9]} 28. gxh3 {[%clk 0:00:17.6]} 28... Rg8+
{[%clk 0:00:45.7]} 29. Kf2 {[%clk 0:00:19]} 29... Qd7 {[%clk 0:00:45.6]} 30. Nh6
{[%clk 0:00:15.8]} 30... Qd2+ {[%clk 0:00:45.3]} 31. Kf3 {[%clk 0:00:14.9]}
31... Qd1+ {[%clk 0:00:43.9]} 32. Kf2 {[%clk 0:00:13.5]} 32... Qg1+ {[%clk
0:00:44.9]} 33. Ke2 {[%clk 0:00:13.7]} 33... Qf1+ {[%clk 0:00:45.6]} 34. Ke3
{[%clk 0:00:12.4]} 34... Qe1+ {[%clk 0:00:45.2]} 35. Kf3 {[%clk 0:00:13.7]}
35... Qxe4+ {[%clk 0:00:46.7]} 36. Kxe4 {[%clk 0:00:15]} 36... Rg7 {[%clk
0:00:47.8]} 37. Ng4 {[%clk 0:00:15.8]} 37... Rg6 {[%clk 0:00:45.2]} 38. Kf5
{[%clk 0:00:16.1]} 38... h5 {[%clk 0:00:44.7]} 39. Nf2 {[%clk 0:00:13.4]} 39...
Kg7 {[%clk 0:00:41.8]} 40. Ne4 {[%clk 0:00:13.7]} 40... Rg2 {[%clk 0:00:42.4]}
41. Nxc5 {[%clk 0:00:14.8]} 41... Rxh2 {[%clk 0:00:42.4]} 42. Nd7 {[%clk
0:00:12.5]} 42... Rc2 {[%clk 0:00:41.8]} 43. c5 {[%clk 0:00:11.7]} 43... Rxc3
{[%clk 0:00:43.1]} 44. Ke4 {[%clk 0:00:12]} 44... Kg6 {[%clk 0:00:40.8]} 45. a5
{[%clk 0:00:10.1]} 45... Rc1 {[%clk 0:00:40]} 46. a6 {[%clk 0:00:09.4]} 46...
Ra1 {[%clk 0:00:38.3]} 47. Nb8 {[%clk 0:00:08.5]} 47... Re1+ {[%clk 0:00:32.1]}
48. Kd5 {[%clk 0:00:09.3]} 48... e4 {[%clk 0:00:33.5]} 49. c6 {[%clk 0:00:08.7]}
49... Rc1 {[%clk 0:00:26.5]} 50. Nd7 {[%clk 0:00:09.9]} 50... e3 {[%clk
0:00:24.8]} 51. Nc5 {[%clk 0:00:07.3]} 51... Rxc5+ {[%clk 0:00:21.6]} 0-1

[Event "*** Titled Tuesday 3|2 Blitz"]
[Site "Chess.com"]
[Date "2016.01.05"]
[Round "6"]
[White "Quiet_Desperation"]
[Black "ChessChronicles123"]
[Result "1-0"]
[WhiteElo "2111"]
[BlackElo "1688"]
[TimeControl "180+2"]
[EndTime "18:16:04 PST"]
[Termination "Quiet_Desperation won by resignation"]

1. e4 {[%clk 0:03:01.9]} 1... c5 {[%clk 0:03:00.5]} 2. Nf3 {[%clk 0:03:02.9]}
2... d6 {[%clk 0:03:01.1]} 3. d4 {[%clk 0:03:04.1]} 3... cxd4 {[%clk 0:03:01.1]}
4. Nxd4 {[%clk 0:03:06]} 4... Nf6 {[%clk 0:03:02.4]} 5. Nc3 {[%clk 0:03:01.5]}
5... g6 {[%clk 0:03:03.4]} 6. Be3 {[%clk 0:03:02.6]} 6... Bg7 {[%clk 0:03:04.4]}
7. f3 {[%clk 0:03:04.2]} 7... Nbd7 {[%clk 0:03:02.1]} 8. Qd2 {[%clk 0:03:05.5]}
8... h6 {[%clk 0:03:01.7]} 9. O-O-O {[%clk 0:03:05.7]} 9... a6 {[%clk 0:03:03]}
10. Kb1 {[%clk 0:03:07.1]} 10... Qc7 {[%clk 0:03:03]} 11. g4 {[%clk 0:03:05.7]}
11... b5 {[%clk 0:03:03.1]} 12. Bd3 {[%clk 0:03:01]} 12... Bb7 {[%clk
0:03:03.4]} 13. h4 {[%clk 0:03:01.6]} 13... Ne5 {[%clk 0:02:58.3]} 14. g5 {[%clk
0:03:00]} 14... hxg5 {[%clk 0:02:46.6]} 15. hxg5 {[%clk 0:03:00.5]} 15... Nh5
{[%clk 0:02:43.8]} 16. Nd5 {[%clk 0:02:58.2]} 16... Bxd5 {[%clk 0:02:42.5]} 17.
exd5 {[%clk 0:02:56.6]} 17... Nxd3 {[%clk 0:02:38.1]} 18. Qxd3 {[%clk
0:02:56.6]} 18... Qc4 {[%clk 0:02:35.2]} 19. Qxc4 {[%clk 0:02:54.4]} 19... bxc4
{[%clk 0:02:36.2]} 20. Nc6 {[%clk 0:02:56]} 20... Kd7 {[%clk 0:02:32.4]} 21.
Rhe1 {[%clk 0:02:50.3]} 21... Ng3 {[%clk 0:02:31.5]} 22. Bd4 {[%clk 0:02:46.7]}
22... Bxd4 {[%clk 0:02:29.7]} 23. Rxe7+ {[%clk 0:02:43.8]} 23... Kc8 {[%clk
0:02:25.8]} 24. Nxd4 {[%clk 0:02:44.6]} 24... Nf5 {[%clk 0:02:24.9]} 25. Nxf5
{[%clk 0:02:45.1]} 25... gxf5 {[%clk 0:02:25.9]} 26. Rxf7 {[%clk 0:02:44.2]}
26... Rb8 {[%clk 0:02:17.4]} 27. g6 {[%clk 0:02:29.9]} 27... Rb7 {[%clk
0:02:00.7]} 28. g7 {[%clk 0:02:24.6]} 28... Rd8 {[%clk 0:01:51.9]} 29. Rxb7
{[%clk 0:02:16.6]} 29... Kxb7 {[%clk 0:01:52.7]} 30. Rg1 {[%clk 0:02:17.2]}
30... Rg8 {[%clk 0:01:53.1]} 31. Kc1 {[%clk 0:02:18]} 31... Kb6 {[%clk
0:01:53.5]} 32. Kd2 {[%clk 0:02:05]} 32... Kc5 {[%clk 0:01:53.2]} 33. Ke3 {[%clk
0:02:03.8]} 33... Kxd5 {[%clk 0:01:53.7]} 34. Kf4 {[%clk 0:02:05.4]} 34... Ke6
{[%clk 0:01:53.6]} 35. c3 {[%clk 0:02:05.1]} 35... a5 {[%clk 0:01:51]} 36. a4
{[%clk 0:02:04.5]} 36... Kf6 {[%clk 0:01:49.5]} 37. Ke3 {[%clk 0:01:55.4]} 37...
Ke5 {[%clk 0:01:46.1]} 38. f4+ {[%clk 0:01:48.8]} 38... Kd5 {[%clk 0:01:46.5]}
39. Rg6 {[%clk 0:01:45]} 39... Kc5 {[%clk 0:01:40.6]} 40. Kf3 {[%clk 0:01:40.5]}
40... d5 {[%clk 0:01:41.2]} 41. Ke3 {[%clk 0:01:41.4]} 41... d4+ {[%clk
0:01:36.1]} 42. cxd4+ {[%clk 0:01:41.7]} 42... Kd5 {[%clk 0:01:37.6]} 43. Rg5
{[%clk 0:01:36.5]} 43... Ke6 {[%clk 0:01:36.5]} 44. Kd2 {[%clk 0:01:35.8]} 44...
Kd5 {[%clk 0:01:29.2]} 45. Kc3 {[%clk 0:01:36.2]} 45... Ke4 {[%clk 0:01:30.7]}
46. Kxc4 {[%clk 0:01:32.3]} 46... Kxf4 {[%clk 0:01:31.8]} 47. Rg1 {[%clk
0:01:32.2]} 47... Ke4 {[%clk 0:01:29.5]} 48. d5 {[%clk 0:01:28.2]} 48... f4
{[%clk 0:01:28.6]} 49. d6 {[%clk 0:01:29.5]} 49... f3 {[%clk 0:01:27.1]} 50. Kc5
{[%clk 0:01:30]} 50... f2 {[%clk 0:01:25.6]} 51. Rf1 {[%clk 0:01:26.5]} 51...
Ke3 {[%clk 0:01:25.9]} 52. d7 {[%clk 0:01:22.4]} 52... Ke2 {[%clk 0:01:08.1]}
53. Rc1 {[%clk 0:01:18.3]} 53... f1=Q {[%clk 0:01:06.5]} 54. Rxf1 {[%clk
0:01:19.2]} 54... Kxf1 {[%clk 0:01:07.6]} 55. Kb5 {[%clk 0:01:17.4]} 55... Ke2
{[%clk 0:01:06.5]} 56. Kxa5 {[%clk 0:01:18.9]} 56... Kd3 {[%clk 0:01:06.5]} 57.
Kb6 {[%clk 0:01:20.3]} 57... Kc4 {[%clk 0:01:05.3]} 58. Kc7 {[%clk 0:01:21.6]}
58... Rxg7 {[%clk 0:01:05.4]} 59. Kc8 {[%clk 0:01:22.4]} 59... Rg2 {[%clk
0:00:14.4]} 60. d8=Q {[%clk 0:01:21]} 60... Rxb2 {[%clk 0:00:16.1]} 61. a5
{[%clk 0:01:19.6]} 61... Kc5 {[%clk 0:00:11.1]} 62. Qg5+ {[%clk 0:01:13.6]}
62... Kc6 {[%clk 0:00:09.2]} 63. Qf6+ {[%clk 0:01:14.1]} 1-0